Cogmind - Beta 17 @@@ ROGUE MODE // 2026.07.20 @ 20:44:21 Player: Boatmurdered Result: Destroyed by G-34 Mercenary with Small Laser Performance ------------- Evolutions (0) 0 Regions Visited (4) 800 Robots Destroyed (40) 200 Value Destroyed (483) 483 Prototype IDs (25) 500 Alien Tech Used (0) 0 Bonus (300) 300 TOTAL SCORE: 2283 Bonus ------- Aligned with FarCom 300 Cogmind --------- Core Integrity 0/250 Matter 292/300 Energy 263/265 System Corruption 0% Temperature Cool (15) Movement Treading (160) Location -9/Mines Parts ------- > --- POWER (1) -------- Improved Ion Engine > --- PROPULSION (2) --- Light Treads Light Treads > --- UTILITY (2) ------ Medium Storage Unit Light Armor Plating > --- WEAPON (2) ------- Autogun Autogun > --- INVENTORY (10) --- Ion Engine Light Ion Engine Seismic Detector Seismic Detector ECM Suite AWS/Autocannon Grenade Launcher Grenade Launcher Peak State ------------ > --- POWER ------------ Improved Ion Engine > --- PROPULSION ------- Light Treads Light Treads > --- UTILITY ---------- Medium Storage Unit Light Armor Plating > --- WEAPON ----------- Autogun Autogun > --- INVENTORY -------- Ion Engine Light Ion Engine Seismic Detector Seismic Detector ECM Suite AWS/Autocannon Grenade Launcher Grenade Launcher [Rating: 13] Favorites ----------- Power Ion Engine Engine Ion Engine Propulsion Light Treads Treads Light Treads Utility Medium Storage Unit Device Seismic Detector Storage Medium Storage Unit Processor Signal Interpreter Protection Light Armor Plating Weapon Autogun Ballistic Gun Autogun Launcher Grenade Launcher Build | -11 -10 -10 -10 -9 ------- Run | Yrd Mat Min Exi Min Slots Evolved . | . . . . . Power . | . . . . . Propulsion . | . . . . . Utility . | . . . . . Weapon . | . . . . . Parts Attached 25 | 7 10 8 . . Power 3 | 1 . 2 . . Engine 3 | 1 . 2 . . Core . | . . . . . Reactor . | . . . . . Propulsion 5 | 2 2 1 . . Treads 5 | 2 2 1 . . Leg . | . . . . . Wheel . | . . . . . Hover . | . . . . . Flight . | . . . . . Utility 7 | 2 3 2 . . Device 1 | 1 . . . . Storage 2 | 1 1 . . . Processor 2 | . 2 . . . Hackware . | . . . . . Protection 2 | . . 2 . . Artifact . | . . . . . Weapon 10 | 2 5 3 . . Energy Gun . | . . . . . Energy Cannon . | . . . . . Ballistic Gun 8 | 2 4 2 . . Ballistic Cannon . | . . . . . Launcher 2 | . 1 1 . . Special Weapon . | . . . . . Impact Weapon . | . . . . . Slashing Weapon . | . . . . . Piercing Weapon . | . . . . . Special Melee Weapon . | . . . . . Unidentified Prototypes . | . . . . . Parts Lost 3 | . . 3 . . Power . | . . . . . Propulsion 1 | . . 1 . . Utility 1 | . . 1 . . Weapon 1 | . . 1 . . Highest Loss Streak 3 | . . 3 . . To Critical Strikes . | . . . . . Average Backups 8 | 5 9 9 8 8 Power 1 | 1 2 2 2 2 Propulsion . | . . . . . Utility 3 | 3 4 3 3 3 Weapon 2 | . 2 3 3 3 Tool/Special . | . . . . . Unused Backups 15 | . 9 2 . 4 Power 5 | . 2 2 . 1 Propulsion . | . . . . . Utility 7 | . 5 . . 2 Weapon 3 | . 2 . . 1 Tool/Special . | . . . . . Average Slot Usage (%) 98 | . 100 96 100 100 Engine 14 | . 14 14 14 14 Treads 27 | . 28 27 28 28 Device 2 | . 5 . . . Storage 14 | . 14 14 14 14 Processor 5 | . 8 7 . . Protection 5 | . . 3 14 14 Ballistic Gun 26 | . 25 26 28 28 Launcher 1 | . 2 1 . . Peak Build Rating 13 | 8 11 12 13 13 Average Rating 9 | 7 8 10 10 13 On Entrance 8 | . 8 11 10 13 Avg Prop Armor Cover (%) . | . . . . . Naked Turns . | . . . . . Heaviest Build 26 | 14 21 26 26 26 Greatest Support 40 | 40 40 40 40 40 Greatest Overweight (x) . | . . . . . Average Overweight (x) . | . . . . . Largest Inventory Capacity 10 | 8 10 10 10 10 Average Capacity 9 | 7 9 10 10 10 Most Carried 10 | 7 10 10 10 10 Average Carried 8 | 5 9 9 8 10 Final Capacity 10 | 8 10 10 10 10 Final Carried 10 | 7 10 8 10 10 Class Distribution -------------------- 100% | Mutant Dominant Class ---------------- Mutant | -10/Materials Mutant | -10/Mines Mutant | -10/Exiles Mutant | -9/Mines Resources | -11 -10 -10 -10 -9 ----------- Run | Yrd Mat Min Exi Min Matter Collected 1132 | 495 339 298 . . Remotely . | . . . . . Salvage Created 995 | 345 380 270 . . Parts 87 | 34 33 20 . . Haulers Intercepted 1 | . 1 . . . Recyclers Shooed 2 | 1 1 . . . Parts Field Recycled . | . . . . . Retrieved Matter . | . . . . . Parts Self-Destructed . | . . . . . Prevented . | . . . . . Parts Restored . | . . . . . Kills | -11 -10 -10 -10 -9 ------- Run | Yrd Mat Min Exi Min Combat Hostiles Destroyed 16 | . 10 6 . . Guns 9 | . 5 4 . . AOE 7 | . 5 2 . . Classes Destroyed 9 | 3 5 1 . . Worker 7 | 4 3 . . . Builder 1 | . 1 . . . Tunneler 9 | 9 . . . . Hauler 1 | . 1 . . . Recycler 3 | 1 . 2 . . Watcher 3 | . 3 . . . Swarmer 9 | . 6 3 . . Grunt 4 | . 4 . . . Sentry 2 | . . 2 . . Best Kill Streak 4 | 3 4 3 . . Combat Bots Only 3 | . 3 3 . . Max Kills in Single Turn 3 | 1 3 3 . . Gunslinging 1 | . 1 . . . Exploded 3 | . 3 2 . . Melee . | . . . . . Uniques/NPCs Destroyed 1 | . . 1 . . YI-UF0 (-10/Mines) Combat | -11 -10 -10 -10 -9 -------- Run | Yrd Mat Min Exi Min Hostile Shots Fired 70 | . 29 35 . 6 Missed 19 | . 5 14 . . Hits 51 | . 24 21 . 6 Projectile 51 | . 24 21 . 6 AOE 18 | . . 18 . . Critical Strikes 1 | . . 1 . . Part Disruptions 1 | . 1 . . . Damage Taken 1154 | . 398 674 . 82 Core 256 | . 168 76 . 12 Absorbed by Shields . | . . . . . Regen/Repaired (Parts) 19 | . 19 . . . Core Remaining (%) 100 | 100 . . . . Volleys Fired 97 | 48 28 20 . 1 Largest 2 | 2 2 2 . 2 Hottest 53 | 40 50 53 . 46 Shots Fired 193 | 96 56 39 . 2 Gun 187 | 96 51 38 . 2 Cannon . | . . . . . Launcher 6 | . 5 1 . . Special . | . . . . . Kinetic 187 | 96 51 38 . 2 Thermal . | . . . . . Explosive 6 | . 5 1 . . Electromagnetic . | . . . . . Robot Hit Streak 13 | 7 13 8 . 4 Robot Miss Streak 3 | 3 3 2 . . Penetration Max . | . . . . . Secondary Targets 1 | . 1 . . . Max Gunslinging Chain 1 | . 1 . . . Shots Hit Robots 113 | 49 34 28 . 2 Core Hits 56 | 20 24 12 . . Critical Kills . | . . . . . Critical Parts Destroyed . | . . . . . Critical Strikes . | . . . . . Melee Attacks . | . . . . . Impact . | . . . . . Slashing . | . . . . . Piercing . | . . . . . Sneak Attacks . | . . . . . Combat Hostiles . | . . . . . Follow-up Attacks . | . . . . . Damage Inflicted 1867 | 510 815 511 . 31 Guns 1448 | 510 488 419 . 31 Cannons . | . . . . . Explosions 417 | . 327 90 . . Melee . | . . . . . Ramming 2 | . . 2 . . Kinetic 1448 | 510 488 419 . 31 Thermal . | . . . . . Explosive 417 | . 327 90 . . Electromagnetic . | . . . . . Impact . | . . . . . Slashing . | . . . . . Piercing . | . . . . . Highest Corruption . | . . . . . Average Corruption . | . . . . . Corruption Purged . | . . . . . Corruption Blocked . | . . . . . Overload Shots . | . . . . . Overflow Damage 21 | . 21 . . . Projectiles . | . . . . . Explosions 21 | . 21 . . . Melee . | . . . . . Knockbacks . | . . . . . Impact . | . . . . . Kinetic . | . . . . . Secondary . | . . . . . Self-Inflicted Damage 13 | . 13 . . . Shots 2 | . 2 . . . Rammed 1 | . . 1 . . Targets Rammed 1 | . . 1 . . Kicked . | . . . . . Crushed . | . . . . . Highest Temperature 41 | . 18 41 . 1 Average Temperature 9 | . 6 13 . 1 Received Heat Transfer 219 | . 117 57 . 45 Siege Activations . | . . . . . Martial Activations . | . . . . . Shielding Activations . | . . . . . Robots Disrupted . | . . . . . Combat Hostiles . | . . . . . Robots Corrupted . | . . . . . Combat Hostiles . | . . . . . Parts Fried . | . . . . . Impact Corruptions . | . . . . . Robots Melted . | . . . . . Combat Hostiles . | . . . . . Parts Melted . | . . . . . Heat Transferred . | . . . . . Parts Sabotaged . | . . . . . Parts Stolen . | . . . . . Parts Stripped . | . . . . . Power Chain Reactions . | . . . . . Alert | -11 -10 -10 -10 -9 ------- Run | Yrd Mat Min Exi Min Maximum Alert Level . | . . . . . Low Security (%) 100 | 100 100 100 . 100 Level 1 . | . . . . . Level 2 . | . . . . . Level 3 . | . . . . . Level 4 . | . . . . . Level 5 . | . . . . . High Security . | . . . . . Max Security . | . . . . . Peak Influence 152 | 10 152 80 . . Initial 4 | . . 4 . . Average 21 | 1 42 9 . . Influence Increases 574 | 70 374 130 . . Destroy 0b10 Robot/C 300 | . 200 100 . . Destroy 0b10 Robot/NC 120 | 70 40 10 . . Destroy Leader 58 | . 48 10 . . Successful Hack 41 | . 41 . . . Disable Machine 15 | . 15 . . . Destroy Structure 40 | . 30 10 . . Influence Decreases 574 | 70 362 142 . . Entered New Map 8 | . . 8 . . Time Decay 566 | 70 362 134 . . Squads Dispatched 1 | . 1 . . . Investigation 1 | . 1 . . . Extermination . | . . . . . Reinforcement . | . . . . . Assault . | . . . . . Garrison . | . . . . . Intercept . | . . . . . Searches Triggered . | . . . . . Construction Impeded . | . . . . . Haulers Reinforced . | . . . . . Active Scanning Responses . | . . . . . Cargo Convoy Interrupts . | . . . . . Stealth | -11 -10 -10 -10 -9 --------- Run | Yrd Mat Min Exi Min Distress Signals 1 | . 1 . . . Communications Jammed . | . . . . . Distress Signals . | . . . . . Times Spotted 26 | . 18 6 . 2 Peak Tracking Total 4 | . 4 3 . 2 Tactical Retreats . | . . . . . Traps | -11 -10 -10 -10 -9 ------- Run | Yrd Mat Min Exi Min Traps Triggered 2 | . 2 . . . Indirectly . | . . . . . Trap Hack Attempts . | . . . . . Triggered . | . . . . . Disarmed . | . . . . . Reprogrammed . | . . . . . Reused . | . . . . . Traps Extracted . | . . . . . Installed . | . . . . . Triggered . | . . . . . Machines | -11 -10 -10 -10 -9 ---------- Run | Yrd Mat Min Exi Min Machines Disabled 1 | . 1 . . . Max in Single Turn 1 | . 1 . . . Machines Repaired . | . . . . . Machines Dismantled . | . . . . . Machines Sabotaged . | . . . . . Overloaded Fab Kills . | . . . . . Hacking | -11 -10 -10 -10 -9 --------- Run | Yrd Mat Min Exi Min Machines Accessed 8 | . 7 . 1 . Terminals 6 | . 6 . . . Fabricators . | . . . . . Repair Stations 1 | . 1 . . . Recycling Units . | . . . . . Scanalyzers . | . . . . . Garrison Access . | . . . . . Total Hacks 22 | . 21 . 1 . Successful 10 | . 9 . 1 . Failed 12 | . 12 . . . Catastrophic . | . . . . . Database Lockouts . | . . . . . Manual 21 | . 20 . 1 . Terminals 18 | . 18 . . . Fabricators . | . . . . . Repair Stations 3 | . 3 . . . Recycling Units . | . . . . . Scanalyzers . | . . . . . Garrison Access . | . . . . . Terminal Hacks 5 | . 4 . 1 . Part Schematic 1 | . 1 . . . Robot Analysis 1 | . 1 . . . Prototype ID Bank 1 | . 1 . . . Locate Traps 1 | . 1 . . . Proto ID Catalog 1 | . . . 1 . Fabricator Hacks . | . . . . . Repair Station Hacks 2 | . 2 . . . Scan Component 1 | . 1 . . . Repair 1 | . 1 . . . Recycling Unit Hacks . | . . . . . Scanalyzer . | . . . . . Garrison Access Hacks . | . . . . . Unauthorized Hacks 3 | . 3 . . . Terminals 3 | . 3 . . . Botnet 3 | . 3 . . . Fabricators . | . . . . . Repair Stations . | . . . . . Recycling Units . | . . . . . Scanalyzers . | . . . . . Garrison Access . | . . . . . Data Cores Recovered . | . . . . . Used . | . . . . . Hacking Detections 7 | . 7 . . . Full Trace Events . | . . . . . Feedback Events . | . . . . . Feedback Blocked . | . . . . . Robot Schematics Acquired . | . . . . . Robots Built . | . . . . . Authchips . | . . . . . Time . | . . . . . Total Robot Build Rating . | . . . . . Part Schematics Acquired 1 | . 1 . . . Parts Built . | . . . . . Authchips . | . . . . . Time . | . . . . . Total Part Build Rating . | . . . . . Part Studies Acquired . | . . . . . Parts Repaired 1 | . 1 . . . Time 13 | . 13 . . . Parts Recycled . | . . . . . Recycled Matter . | . . . . . Retrieved Matter . | . . . . . Retrieved Components . | . . . . . Parts Scanalyzed . | . . . . . Part Schematics Acquired . | . . . . . Parts Damaged . | . . . . . Bothacking | -11 -10 -10 -10 -9 ------------ Run | Yrd Mat Min Exi Min Used RIF Installer . | . . . . . Robots Hacked . | . . . . . Non-combat . | . . . . . Combat . | . . . . . Robot Hacks Applied . | . . . . . Relay Couplers Released . | . . . . . Fabnet Peak Effective % . | . . . . . Robots Rewired . | . . . . . Allies Hacked . | . . . . . Hacks Repelled . | . . . . . Allies | -11 -10 -10 -10 -9 -------- Run | Yrd Mat Min Exi Min Total Allies . | . . . . . Largest Group . | . . . . . Highest-Rated Group . | . . . . . Highest-Rated Ally . | . . . . . Total Orders . | . . . . . Ally Attacks . | . . . . . Total Damage . | . . . . . Kills . | . . . . . Allies Corrupted . | . . . . . Allies Melted . | . . . . . Intel | -11 -10 -10 -10 -9 ------- Run | Yrd Mat Min Exi Min Active Infowar (turns) 1541 | 558 501 482 . . Optics 511 | . 29 482 . . Seismic 1030 | 558 472 . . . Robot Analysis Total 1 | . 1 . . . Derelict Logs Recovered 1 | . . 1 . . Drone Launches . | . . . . . Drone Recoveries . | . . . . . Exploration | -11 -10 -10 -10 -9 ------------- Run | Yrd Mat Min Exi Min Turns Passed 3742 | 638 1229 954 917 4 Spaces Moved 2030 | 245 667 548 568 2 Core 3 | 3 . . . . Treads 2027 | 242 667 548 568 2 Legs . | . . . . . Wheels . | . . . . . Hover . | . . . . . Flight . | . . . . . Fastest Speed 50 | 50 160 160 160 160 Average Speed 159 | 158 160 160 160 160 Slowest Speed 160 | 160 160 160 160 160 Overloaded Moves . | . . . . . Propulsion Burnouts . | . . . . . Robots Hopped . | . . . . . Potential Cave-ins . | . . . . . Cave-ins Triggered . | . . . . . Exploration Rate (%) 58 | 7 94 95 89 5 Regions Visited 4 Branch Regions 3 Pre-discovered Areas 1 | . . 1 . . Known Exits Taken 1 | . 1 . . . Unknown Exits Taken 3 | 1 . 1 1 . Scrap Searched 2 | . . 2 . . Spaces Dug . | . . . . . Terrain Destroyed 48 | . 38 10 . . Melee . | . . . . . Projectile . | . . . . . AOE 48 | . 38 10 . . Terrain Rammed . | . . . . . Walls Destroyed . | . . . . . Machines Disabled . | . . . . . Actions | -11 -10 -10 -10 -9 --------- Run | Yrd Mat Min Exi Min Total 2365 | 404 788 593 577 3 Wait 164 | 98 51 7 8 . Move 2026 | 244 666 547 567 2 Hop . | . . . . . Pick Up 26 | 7 16 2 1 . Fast Attach 10 | 7 1 2 . . Attach 2 | . . 2 . . Detach . | . . . . . Swap 16 | . 9 7 . . Drop 23 | . 17 5 1 . Fire 97 | 48 28 20 . 1 Melee . | . . . . . Ram . | . . . . . Kick . | . . . . . Crush 1 | . . 1 . . Escape Stasis . | . . . . . Rewire . | . . . . . Trap . | . . . . . Miscellaneous . | . . . . . Route ------- -11/Scrapyard -10/Materials (discovered 4 exits: *Mat x2 / *Min x2) -10/Mines (discovered 3 exits: *Mat x2 / *Exi) -10/Exiles (discovered 2 exits: [*Min x2]) -9/Mines History --------- Turn | Location | Event 6 | -11/Scrapyard | Discovered new exit (range 14) 639 | -11/Scrapyard | Entered Materials 639 | -10/Materials | Discovered new exit (range 8) 640 | -10/Materials | Build established: Mutant 956 | -10/Materials | Discovered new exit (range 9) 1119 | -10/Materials | Identified exit to Mines 1228 | -10/Materials | Discovered new exit (range 16) 1250 | -10/Materials | Identified exit to Materials 1354 | -10/Materials | Repaired Grenade Launcher 1520 | -10/Materials | Core integrity fell below 50% 1710 | -10/Materials | Discovered exit to Materials (range 16) 1868 | -10/Materials | Entered Mines 2143 | -10/Mines | Discovered exit to Materials (range 9) 2291 | -10/Mines | Discovered exit to Materials (range 6) 2406 | -10/Mines | Core integrity fell below 20% 2419 | -10/Mines | Destroyed YI-UF0 2450 | -10/Mines | Lost 3 parts (1n1u1w) 2712 | -10/Mines | Deemed a non-threat by the Exiles lab entrance 2712 | -10/Mines | Discovered new exit (range 5) 2822 | -10/Mines | Entered Exiles 2846 | -10/Exiles | Discovered new exit (range 15) 2885 | -10/Exiles | Met 8R-AWN 2915 | -10/Exiles | Met EX-HEX 2965 | -10/Exiles | Met EX-BIN 3090 | -10/Exiles | Met EX-DEC 3184 | -10/Exiles | Discovered new exit (range 14) 3300 | -10/Exiles | Visited The Gauntlet 3498 | -10/Exiles | Aligned with FarCom system 3499 | -10/Exiles | Given EX-Vault access code 3536 | -10/Exiles | Opened EX-Vault 3549 | -10/Exiles | Found AWS/Autocannon 3581 | -10/Exiles | Warned to stay clear of 0b10 Research branches 3603 | -10/Exiles | Exiles lab attacked by MAIN.C 3739 | -10/Exiles | Left Exiles lab with AWS/Autocannon 3739 | -10/Exiles | Entered Mines 3743 | -9/Mines | Destroyed by G-34 Mercenary with Small Laser Last Messages --------------- evacuation. 03618_ EX-BIN seems to be suffering from a case of analysis paralysis. 03630_ 8R-AWN: "We've got company!" 03634_ 8R-AWN: "I'll cover you all, get out of here!" 03638_ EXILES: Lab perimeter alert, evacuate immediately. 03643_ EX-BIN: "Not cool, MAIN.C, I don't even have my SDF Cannon ready..." 03724_ DK-RAY exits level. 03728_ 5L-KAT exits level. 03728_ W1-DM0 exits level. 03733_ ZX-C33 exits level. 03734_ GM-J5T exits level. LOCATION=UNKNOWN GOAL=ESCAPE 03739_ Receiving FarCom transmissions... 03741_ J5-HVA: "That was close. Too bad in all the rush we got split up from the others." Map ----- +----------------------------------------------------+ | | | | | | | | | | | | | | | | | | | | | | | | | | | | | | | | | | | | | | | | | ????????????????????????????????????????? | | ????????????????###########?????????????? | | ???## ????????# g #?????????????? | | ???# ###### #?????????????? | | ??# $ g """ #?????????????? | | ??# @ """ #?????????????? | | ??# #### """ #?????????????? | | ?# ??????# z #?????????????? | | ???? ??????????####### ###?????????????? | | ????????????????????????#???????????????? | | ????????????????????????????????????????? | | ????????????????????????????????????????? | | ????????????????????????????????????????? | | ????????????????????????????????????????? | | ????????????????????????????????????????? | | ????????????????????????????????????????? | | ????????????????????????????????????????? | | ????????????????????????????????????????? | | ????????????????????????????????????????? | | ????????????????????????????????????????? | | ????????????????????????????????????????? | | ????????????????????????????????????????? | | ????????????????????????????????????????? | | ????????????????????????????????????????? | | ????????????????????????????????????????? | | ????????????????????????????????????????? | | ????????????????????????????????????????? | | ????????????????????????????????????????? | | ????????????????????????????????????????? | | ????????????????????????????????????????? | +----------------------------------------------------+ Best States ------------- Heat Dissipation 25 Energy Generation 12 Energy Capacity 265 Matter Stores 300 Matter Capacity 300 Sight Range 18 Terrain Scan Density 10 Armor Coverage 150 Evasion (%) 40 Recoil Reduction 2 Item Schematics ----------------- Hcp. Storage Unit | -10/Materials | Hacked Robot Schematics ------------------ None Fabricated ------------ Nothing Repaired ---------- Grenade Launcher | 68% | -10/Materials Studied --------- None Alien Tech Used ----------------- None Achievements -------------- None Challenges ------------ None Game ------ Seed SubdwellerLayeredCape Manual? 0 Play Time 00:38:16 Cumulative 9.6 hours Start 2026.07.20 @ 19:30:19 End 2026.07.20 @ 20:44:21 Sessions 1 Manual Loads 0 Difficulty Rogue Special Mode None Game No. 7 Rogue 7 Adventurer 0 Explorer 0 Win Type - Total 0 Types 0/0/0/0/0/0/0/0/0/0 Lore% 8 Gallery% 9 Achievement% 12 Wizard Run 0 Options --------- Layout 1 ASCII 0 Keyboard 0 Movement Mouse Keybinds 0 Fullscreen 1 Font 24/Smallcaps Map View 50x35 Zoom Use 0% Tactical HUD 1 Map Filters NONE Filters NONE Steam 1 RUN: 6d02f98d-7c18-4349-b041-bc09cabd1d26